[Event "*** SCC Grand Prix: Titled Tuesday Blitz"]
[Site "Chess.com"]
[Date "2020.07.07"]
[Round "5"]
[White "Crazy_girl99"]
[Black "tsvet2005"]
[Result "1/2-1/2"]
[WhiteElo "2442"]
[BlackElo "2630"]
[TimeControl "180+1"]
[EndTime "10:57:13 PDT"]
[Termination "Game drawn - insufficient material"]

1. e4 {[%clk 0:03:00.9]} 1... c5 {[%clk 0:02:59.8]} 2. Nf3 {[%clk 0:03:00.5]}
2... d6 {[%clk 0:03:00.2]} 3. d4 {[%clk 0:03:00.4]} 3... cxd4 {[%clk 0:03:01.1]}
4. Nxd4 {[%clk 0:03:00.5]} 4... Nf6 {[%clk 0:03:01.6]} 5. Nc3 {[%clk 0:03:00.7]}
5... a6 {[%clk 0:03:02.1]} 6. Qd3 {[%clk 0:02:56.9]} 6... Nbd7 {[%clk
0:02:56.3]} 7. Qg3 {[%clk 0:02:53.5]} 7... Nc5 {[%clk 0:02:52.6]} 8. Bd3 {[%clk
0:02:47.3]} 8... e5 {[%clk 0:02:47]} 9. Nb3 {[%clk 0:02:41]} 9... Nxd3+ {[%clk
0:02:10.2]} 10. cxd3 {[%clk 0:02:28.6]} 10... Be6 {[%clk 0:02:06.3]} 11. O-O
{[%clk 0:02:24.6]} 11... Qd7 {[%clk 0:01:49]} 12. h3 {[%clk 0:02:05.1]} 12...
Be7 {[%clk 0:01:39.3]} 13. Be3 {[%clk 0:01:58.2]} 13... O-O {[%clk 0:01:33.4]}
14. d4 {[%clk 0:01:51.6]} 14... Bc4 {[%clk 0:01:30.2]} 15. Rfd1 {[%clk
0:01:48.7]} 15... Qe6 {[%clk 0:01:18.2]} 16. d5 {[%clk 0:01:40.7]} 16... Qd7
{[%clk 0:01:13.1]} 17. Nd2 {[%clk 0:01:39.9]} 17... Rfc8 {[%clk 0:01:08.2]} 18.
Rac1 {[%clk 0:01:33]} 18... Qe8 {[%clk 0:00:43.5]} 19. b3 {[%clk 0:01:29.6]}
19... Bb5 {[%clk 0:00:43.3]} 20. a4 {[%clk 0:01:25.4]} 20... Bd7 {[%clk
0:00:43.2]} 21. Nc4 {[%clk 0:01:24.3]} 21... b5 {[%clk 0:00:37.3]} 22. axb5
{[%clk 0:00:55.4]} 22... axb5 {[%clk 0:00:38.2]} 23. Nd2 {[%clk 0:00:55.9]}
23... b4 {[%clk 0:00:27.6]} 24. Ne2 {[%clk 0:00:54.2]} 24... Bb5 {[%clk
0:00:26.8]} 25. Qf3 {[%clk 0:00:48.1]} 25... Rxc1 {[%clk 0:00:20.8]} 26. Rxc1
{[%clk 0:00:46.9]} 26... Rc8 {[%clk 0:00:21.2]} 27. Ra1 {[%clk 0:00:33.6]} 27...
Rc2 {[%clk 0:00:17.5]} 28. Ng3 {[%clk 0:00:33.3]} 28... g6 {[%clk 0:00:15.8]}
29. Qd1 {[%clk 0:00:31.9]} 29... Rc3 {[%clk 0:00:15]} 30. Ne2 {[%clk 0:00:28.6]}
30... Rc8 {[%clk 0:00:13]} 31. f3 {[%clk 0:00:26.1]} 31... Nd7 {[%clk
0:00:13.2]} 32. Ra5 {[%clk 0:00:20.7]} 32... Nc5 {[%clk 0:00:13.3]} 33. Nc4
{[%clk 0:00:20.4]} 33... Nxb3 {[%clk 0:00:10.9]} 34. Qxb3 {[%clk 0:00:19.5]}
34... Bxc4 {[%clk 0:00:11.1]} 35. Qb2 {[%clk 0:00:20.1]} 35... b3 {[%clk
0:00:09.3]} 36. Nc1 {[%clk 0:00:19.4]} 36... Qd8 {[%clk 0:00:07.8]} 37. Ra3
{[%clk 0:00:18.8]} 37... Rb8 {[%clk 0:00:07.7]} 38. Nxb3 {[%clk 0:00:18.8]}
38... Qc7 {[%clk 0:00:07.8]} 39. Qc3 {[%clk 0:00:18.8]} 39... Rc8 {[%clk
0:00:05.4]} 40. Ra7 {[%clk 0:00:18.5]} 40... Qb8 {[%clk 0:00:03.4]} 41. Nd2
{[%clk 0:00:17.9]} 41... Be2 {[%clk 0:00:02]} 42. Qa5 {[%clk 0:00:17.7]} 42...
Bf8 {[%clk 0:00:02]} 43. Qb6 {[%clk 0:00:16.9]} 43... Qxb6 {[%clk 0:00:02]} 44.
Bxb6 {[%clk 0:00:17.8]} 44... Rc2 {[%clk 0:00:02.3]} 45. Be3 {[%clk 0:00:17.8]}
45... Bd3 {[%clk 0:00:02.5]} 46. Kf2 {[%clk 0:00:18]} 46... Bc4 {[%clk 0:00:02]}
47. Rc7 {[%clk 0:00:17.4]} 47... Bd3 {[%clk 0:00:02.5]} 48. Rxc2 {[%clk
0:00:17.9]} 48... Bxc2 {[%clk 0:00:03.4]} 49. g3 {[%clk 0:00:18.2]} 49... Ba4
{[%clk 0:00:04]} 50. f4 {[%clk 0:00:18.6]} 50... Bd7 {[%clk 0:00:04.5]} 51. h4
{[%clk 0:00:18]} 51... exf4 {[%clk 0:00:04.2]} 52. gxf4 {[%clk 0:00:17.9]} 52...
Be7 {[%clk 0:00:05.1]} 53. Kf3 {[%clk 0:00:18.3]} 53... Bxh4 {[%clk 0:00:04.8]}
54. Nc4 {[%clk 0:00:18.8]} 54... Be7 {[%clk 0:00:05.7]} 55. e5 {[%clk
0:00:19.2]} 55... dxe5 {[%clk 0:00:06]} 56. fxe5 {[%clk 0:00:20.1]} 56... Bb5
{[%clk 0:00:05.8]} 57. Nd2 {[%clk 0:00:17.8]} 57... Kf8 {[%clk 0:00:04.4]} 58.
d6 {[%clk 0:00:17.6]} 58... Bh4 {[%clk 0:00:04.7]} 59. Ke4 {[%clk 0:00:17.7]}
59... Bc6+ {[%clk 0:00:04.2]} 60. Kd4 {[%clk 0:00:17.8]} 60... Ke8 {[%clk
0:00:02.4]} 61. Nc4 {[%clk 0:00:17]} 61... Ba4 {[%clk 0:00:02.3]} 62. Nb6 {[%clk
0:00:17]} 62... Bd7 {[%clk 0:00:02.8]} 63. Kd5 {[%clk 0:00:14.3]} 63... Bd8
{[%clk 0:00:03.1]} 64. Nc4 {[%clk 0:00:12.8]} 64... Be6+ {[%clk 0:00:03.3]} 65.
Kc5 {[%clk 0:00:13.2]} 65... Bxc4 {[%clk 0:00:04]} 66. Kxc4 {[%clk 0:00:14.1]}
66... Kd7 {[%clk 0:00:04.8]} 67. Kd5 {[%clk 0:00:14.5]} 67... h5 {[%clk
0:00:05.2]} 68. Bf4 {[%clk 0:00:14.5]} 68... h4 {[%clk 0:00:04.5]} 69. Ke4
{[%clk 0:00:13]} 69... Ke6 {[%clk 0:00:04.8]} 70. Be3 {[%clk 0:00:12.4]} 70...
g5 {[%clk 0:00:04.9]} 71. Bf2 {[%clk 0:00:13.1]} 71... g4 {[%clk 0:00:03.7]} 72.
Kf4 {[%clk 0:00:13.5]} 72... g3 {[%clk 0:00:03.5]} 73. Be1 {[%clk 0:00:13.8]}
73... f6 {[%clk 0:00:03.2]} 74. exf6 {[%clk 0:00:13.5]} 74... Bxf6 {[%clk
0:00:04.1]} 75. Kg4 {[%clk 0:00:13.4]} 75... Kxd6 {[%clk 0:00:04.5]} 76. Bxg3+
{[%clk 0:00:13.4]} 76... hxg3 {[%clk 0:00:03.1]} 77. Kxg3 {[%clk 0:00:14.3]}
1/2-1/2

[Event "*** SCC Grand Prix: Titled Tuesday Blitz"]
[Site "Chess.com"]
[Date "2020.07.07"]
[Round "5"]
[White "FedaMaster"]
[Black "Rodalquilar"]
[Result "0-1"]
[WhiteElo "2431"]
[BlackElo "2619"]
[TimeControl "180+1"]
[EndTime "10:57:15 PDT"]
[Termination "Rodalquilar won by resignation"]

1. e4 {[%clk 0:03:00.9]} 1... Nf6 {[%clk 0:02:59]} 2. Nc3 {[%clk 0:02:58.7]}
2... d5 {[%clk 0:02:58.9]} 3. exd5 {[%clk 0:02:58.8]} 3... Nxd5 {[%clk
0:02:59.4]} 4. Bc4 {[%clk 0:02:59.3]} 4... c6 {[%clk 0:03:00]} 5. Qf3 {[%clk
0:02:58.6]} 5... Nf6 {[%clk 0:02:58.4]} 6. Nge2 {[%clk 0:02:53.6]} 6... Bg4
{[%clk 0:02:56.7]} 7. Qg3 {[%clk 0:02:53.1]} 7... e6 {[%clk 0:02:57.3]} 8. f3
{[%clk 0:02:49.8]} 8... Bd6 {[%clk 0:02:31.9]} 9. Qf2 {[%clk 0:02:48.3]} 9...
Bf5 {[%clk 0:02:30.1]} 10. d3 {[%clk 0:02:47.7]} 10... Nbd7 {[%clk 0:02:28.5]}
11. Ne4 {[%clk 0:02:30.2]} 11... Bc7 {[%clk 0:02:12.5]} 12. O-O {[%clk
0:02:10.1]} 12... Nd5 {[%clk 0:02:04.1]} 13. N2g3 {[%clk 0:01:51.5]} 13... Bg6
{[%clk 0:01:52.7]} 14. Bg5 {[%clk 0:01:24.3]} 14... f6 {[%clk 0:01:47.5]} 15.
Bd2 {[%clk 0:01:23.8]} 15... h5 {[%clk 0:01:46.9]} 16. Ne2 {[%clk 0:01:21.5]}
16... h4 {[%clk 0:01:45]} 17. h3 {[%clk 0:01:10.7]} 17... Ne5 {[%clk 0:01:44.7]}
18. Bb3 {[%clk 0:01:07.8]} 18... a5 {[%clk 0:01:41.6]} 19. a3 {[%clk 0:01:04.9]}
19... a4 {[%clk 0:01:38.5]} 20. Ba2 {[%clk 0:01:05.2]} 20... Bf5 {[%clk
0:01:32]} 21. d4 {[%clk 0:00:55.4]} 21... Ng6 {[%clk 0:01:25.3]} 22. Rfe1 {[%clk
0:00:48]} 22... Ngf4 {[%clk 0:01:23.4]} 23. Nxf4 {[%clk 0:00:45.5]} 23... Nxf4
{[%clk 0:01:23.8]} 24. Nc5 {[%clk 0:00:43.3]} 24... Nxh3+ {[%clk 0:01:12.6]} 25.
gxh3 {[%clk 0:00:41.9]} 25... Bg3 {[%clk 0:01:12.7]} 26. Qe3 {[%clk 0:00:32.7]}
26... e5 {[%clk 0:01:11.7]} 27. dxe5 {[%clk 0:00:28.5]} 27... fxe5 {[%clk
0:01:12.2]} 28. Bc3 {[%clk 0:00:24.8]} 28... Qe7 {[%clk 0:00:38.2]} 29. Bxe5
{[%clk 0:00:22.9]} 29... Bxe1 {[%clk 0:00:38.5]} 30. Rxe1 {[%clk 0:00:21.5]}
30... O-O-O {[%clk 0:00:32.3]} 31. Nxa4 {[%clk 0:00:21.6]} 31... Rd6 {[%clk
0:00:10.5]} 32. Nb6+ {[%clk 0:00:15.9]} 32... Kd8 {[%clk 0:00:10.7]} 33. Bxd6
{[%clk 0:00:14.4]} 33... Qxd6 {[%clk 0:00:11.6]} 34. f4 {[%clk 0:00:10.9]} 34...
Kc7 {[%clk 0:00:10.9]} 35. Nc4 {[%clk 0:00:10.1]} 35... Qg6+ {[%clk 0:00:10.5]}
36. Kh2 {[%clk 0:00:09.6]} 36... Re8 {[%clk 0:00:07.5]} 37. Qf2 {[%clk
0:00:07.9]} 37... Qg3+ {[%clk 0:00:06.2]} 38. Qxg3 {[%clk 0:00:08.3]} 38...
hxg3+ {[%clk 0:00:07.1]} 39. Kxg3 {[%clk 0:00:08.6]} 39... Rxe1 {[%clk
0:00:07.9]} 40. Ne5 {[%clk 0:00:06.8]} 40... Bxc2 {[%clk 0:00:07.9]} 41. Bf7
{[%clk 0:00:06.2]} 41... Rb1 {[%clk 0:00:07.1]} 42. b4 {[%clk 0:00:06.4]} 42...
Ra1 {[%clk 0:00:06.6]} 43. h4 {[%clk 0:00:06.6]} 43... Rxa3+ {[%clk 0:00:06.9]}
44. Kg4 {[%clk 0:00:06.6]} 44... Bb3 {[%clk 0:00:07.8]} 45. Bg6 {[%clk
0:00:06.1]} 45... Bd5 {[%clk 0:00:06.9]} 46. f5 {[%clk 0:00:05.2]} 46... Rb3
{[%clk 0:00:06.4]} 47. h5 {[%clk 0:00:05.4]} 47... Rxb4+ {[%clk 0:00:06.8]} 48.
Kg5 {[%clk 0:00:06.3]} 48... Rb2 {[%clk 0:00:06.6]} 49. f6 {[%clk 0:00:06.5]}
49... gxf6+ {[%clk 0:00:07.2]} 50. Kxf6 {[%clk 0:00:07.3]} 50... Rf2+ {[%clk
0:00:07.3]} 51. Kg5 {[%clk 0:00:06.1]} 51... Rg2+ {[%clk 0:00:07.7]} 52. Ng4
{[%clk 0:00:06.5]} 52... Bf3 {[%clk 0:00:07.5]} 53. Bf5 {[%clk 0:00:07.2]} 53...
Bxg4 {[%clk 0:00:07.4]} 54. Bxg4 {[%clk 0:00:08.1]} 54... Rh2 {[%clk 0:00:07.8]}
55. h6 {[%clk 0:00:09]} 55... c5 {[%clk 0:00:07.3]} 56. Bh5 {[%clk 0:00:09.5]}
56... Rg2+ {[%clk 0:00:07.9]} 57. Kf6 {[%clk 0:00:09.4]} 57... Rh2 {[%clk
0:00:07.6]} 58. Kg5 {[%clk 0:00:09.1]} 58... Rg2+ {[%clk 0:00:08]} 59. Bg4
{[%clk 0:00:09.6]} 59... Rd2 {[%clk 0:00:06.3]} 60. Be6 {[%clk 0:00:07.7]} 60...
Rd8 {[%clk 0:00:06.1]} 61. h7 {[%clk 0:00:08.2]} 61... Rh8 {[%clk 0:00:06]} 62.
Bg8 {[%clk 0:00:08.9]} 62... Kd6 {[%clk 0:00:06.8]} 63. Kf6 {[%clk 0:00:09.5]}
63... b5 {[%clk 0:00:07]} 64. Kf5 {[%clk 0:00:09.2]} 64... c4 {[%clk 0:00:04.5]}
65. Ke4 {[%clk 0:00:09.8]} 65... Kc5 {[%clk 0:00:04.6]} 66. Ke3 {[%clk
0:00:10.3]} 66... b4 {[%clk 0:00:04.4]} 67. Kd2 {[%clk 0:00:11.2]} 67... Kd4
{[%clk 0:00:04.3]} 68. Kc2 {[%clk 0:00:12.1]} 68... b3+ {[%clk 0:00:04.8]} 69.
Kb2 {[%clk 0:00:12.5]} 69... Kd3 {[%clk 0:00:05]} 70. Kc1 {[%clk 0:00:11.6]}
70... Kc3 {[%clk 0:00:04.6]} 71. Kb1 {[%clk 0:00:12]} 71... Kd2 {[%clk
0:00:05.2]} 72. Kb2 {[%clk 0:00:12.1]} 72... c3+ {[%clk 0:00:05.7]} 73. Kxb3
{[%clk 0:00:12.5]} 73... c2 {[%clk 0:00:06.6]} 0-1

[Event "*** SCC Grand Prix: Titled Tuesday Blitz"]
[Site "Chess.com"]
[Date "2020.07.07"]
[Round "5"]
[White "Budisavljevic"]
[Black "Skatchkov_V"]
[Result "1-0"]
[WhiteElo "2409"]
[BlackElo "2529"]
[TimeControl "180+1"]
[EndTime "10:57:17 PDT"]
[Termination "Budisavljevic won by checkmate"]

1. d4 {[%clk 0:02:43.4]} 1... Nf6 {[%clk 0:02:59.4]} 2. Nf3 {[%clk 0:02:43.7]}
2... e6 {[%clk 0:02:59.1]} 3. Bf4 {[%clk 0:02:44.1]} 3... d5 {[%clk 0:02:58.2]}
4. e3 {[%clk 0:02:44.4]} 4... c5 {[%clk 0:02:58.6]} 5. c3 {[%clk 0:02:43.9]}
5... Nc6 {[%clk 0:02:59.1]} 6. Nbd2 {[%clk 0:02:44.1]} 6... Bd6 {[%clk
0:02:59.7]} 7. Bg3 {[%clk 0:02:44.2]} 7... O-O {[%clk 0:02:59.9]} 8. Bd3 {[%clk
0:02:43.8]} 8... b6 {[%clk 0:03:00.5]} 9. e4 {[%clk 0:02:42.1]} 9... Be7 {[%clk
0:02:56.8]} 10. e5 {[%clk 0:02:40.1]} 10... Nh5 {[%clk 0:02:56.7]} 11. Ng5
{[%clk 0:02:40.4]} 11... Bxg5 {[%clk 0:02:31]} 12. Qxh5 {[%clk 0:02:38.3]} 12...
g6 {[%clk 0:02:30.6]} 13. Qe2 {[%clk 0:02:36]} 13... cxd4 {[%clk 0:02:29.4]} 14.
h4 {[%clk 0:02:35]} 14... Bh6 {[%clk 0:02:29.6]} 15. h5 {[%clk 0:02:33.9]} 15...
Bg7 {[%clk 0:02:18.5]} 16. h6 {[%clk 0:02:29.5]} 16... Bh8 {[%clk 0:02:18.1]}
17. Nf3 {[%clk 0:02:30]} 17... dxc3 {[%clk 0:02:13.2]} 18. bxc3 {[%clk
0:02:30.9]} 18... Bd7 {[%clk 0:02:07.8]} 19. O-O {[%clk 0:02:14.7]} 19... Rc8
{[%clk 0:02:05.7]} 20. Qe3 {[%clk 0:02:06]} 20... Na5 {[%clk 0:02:00.5]} 21. Ba6
{[%clk 0:02:03.9]} 21... Rc5 {[%clk 0:01:56.4]} 22. Bh4 {[%clk 0:01:56.3]} 22...
Qc7 {[%clk 0:01:56]} 23. Be7 {[%clk 0:01:32.9]} 23... Rxc3 {[%clk 0:01:51.1]}
24. Qf4 {[%clk 0:01:33.1]} 24... Nc6 {[%clk 0:01:28.5]} 25. Bxf8 {[%clk
0:00:30.2]} 25... Kxf8 {[%clk 0:01:29.3]} 26. Ng5 {[%clk 0:00:30.6]} 26... Nxe5
{[%clk 0:01:24.7]} 27. Nxh7+ {[%clk 0:00:26.3]} 27... Ke7 {[%clk 0:01:25.2]} 28.
Qb4+ {[%clk 0:00:18.5]} 28... Qc5 {[%clk 0:01:25.4]} 29. Qh4+ {[%clk 0:00:18.7]}
29... f6 {[%clk 0:01:24.9]} 30. Rae1 {[%clk 0:00:16.2]} 30... g5 {[%clk
0:01:18.9]} 31. Qh5 {[%clk 0:00:14.2]} 31... Be8 {[%clk 0:01:16.2]} 32. Qh2
{[%clk 0:00:12.2]} 32... Qd4 {[%clk 0:00:52.2]} 33. Rxe5 {[%clk 0:00:08.8]}
33... Qxe5 {[%clk 0:00:51.9]} 34. Qxe5 {[%clk 0:00:09.3]} 34... fxe5 {[%clk
0:00:52.8]} 35. Nxg5 {[%clk 0:00:09.8]} 35... b5 {[%clk 0:00:49.3]} 36. Rb1
{[%clk 0:00:03.2]} 36... Rc6 {[%clk 0:00:49.3]} 37. Bxb5 {[%clk 0:00:02.9]}
37... Rb6 {[%clk 0:00:49.6]} 38. Bd3 {[%clk 0:00:02.5]} 38... e4 {[%clk
0:00:50.3]} 39. Rxb6 {[%clk 0:00:01.7]} 39... axb6 {[%clk 0:00:51.2]} 40. Be2
{[%clk 0:00:02.5]} 40... Kf6 {[%clk 0:00:47.4]} 41. Nh3 {[%clk 0:00:03.4]} 41...
e5 {[%clk 0:00:43.7]} 42. Kf1 {[%clk 0:00:03.7]} 42... d4 {[%clk 0:00:43.7]} 43.
Bd1 {[%clk 0:00:03.1]} 43... Kg6 {[%clk 0:00:42.2]} 44. Bc2 {[%clk 0:00:02.1]}
44... d3 {[%clk 0:00:42]} 45. Bb1 {[%clk 0:00:03]} 45... Bb5 {[%clk 0:00:41.5]}
46. Ke1 {[%clk 0:00:03.4]} 46... Kxh6 {[%clk 0:00:42]} 47. Kd2 {[%clk
0:00:03.9]} 47... Bf6 {[%clk 0:00:38.9]} 48. Ke3 {[%clk 0:00:03.7]} 48... Be7
{[%clk 0:00:35.8]} 49. Ng1 {[%clk 0:00:03.1]} 49... Bc5+ {[%clk 0:00:34.4]} 50.
Kxe4 {[%clk 0:00:03.6]} 50... d2 {[%clk 0:00:34.7]} 51. Bc2 {[%clk 0:00:02.8]}
51... Ba4 {[%clk 0:00:35]} 52. Bxa4 {[%clk 0:00:01.9]} 52... Bxf2 {[%clk
0:00:35.1]} 53. Nh3 {[%clk 0:00:02.2]} 53... Be1 {[%clk 0:00:32.3]} 54. Bd1
{[%clk 0:00:02.3]} 54... Kg6 {[%clk 0:00:31.2]} 55. Kxe5 {[%clk 0:00:03.2]}
55... Kf7 {[%clk 0:00:31.4]} 56. Nf4 {[%clk 0:00:03.6]} 56... b5 {[%clk
0:00:32.3]} 57. g4 {[%clk 0:00:03.8]} 57... b4 {[%clk 0:00:33.1]} 58. g5 {[%clk
0:00:04]} 58... Kg7 {[%clk 0:00:34]} 59. Kf5 {[%clk 0:00:03.1]} 59... Bh4 {[%clk
0:00:33.8]} 60. Ne6+ {[%clk 0:00:03.4]} 60... Kf7 {[%clk 0:00:34.3]} 61. g6+
{[%clk 0:00:03.9]} 61... Kg8 {[%clk 0:00:34.3]} 62. Nf4 {[%clk 0:00:04.2]} 62...
Bg3 {[%clk 0:00:33.6]} 63. Nd5 {[%clk 0:00:04.5]} 63... Bd6 {[%clk 0:00:33.4]}
64. Ne3 {[%clk 0:00:05]} 64... Kg7 {[%clk 0:00:33.6]} 65. Kg5 {[%clk 0:00:04.3]}
65... Bc5 {[%clk 0:00:32.7]} 66. Nf5+ {[%clk 0:00:03.9]} 66... Kg8 {[%clk
0:00:32.6]} 67. Bb3+ {[%clk 0:00:03.5]} 67... Kh8 {[%clk 0:00:30.6]} 68. g7+
{[%clk 0:00:04.4]} 68... Kh7 {[%clk 0:00:31.4]} 69. g8=Q# {[%clk 0:00:04.3]} 1-0

[Event "*** SCC Grand Prix: Titled Tuesday Blitz"]
[Site "Chess.com"]
[Date "2020.07.07"]
[Round "5"]
[White "hongnhung1234"]
[Black "Joseacorrea"]
[Result "0-1"]
[WhiteElo "2202"]
[BlackElo "1922"]
[TimeControl "180+1"]
[EndTime "10:57:17 PDT"]
[Termination "Joseacorrea won by checkmate"]

1. e4 {[%clk 0:02:53.1]} 1... c5 {[%clk 0:02:59.4]} 2. Nc3 {[%clk 0:02:52.2]}
2... g6 {[%clk 0:02:59.3]} 3. f4 {[%clk 0:02:51.6]} 3... Bg7 {[%clk 0:02:59.5]}
4. Nf3 {[%clk 0:02:46]} 4... Nc6 {[%clk 0:02:59.4]} 5. Bc4 {[%clk 0:02:41.4]}
5... e6 {[%clk 0:02:59]} 6. O-O {[%clk 0:02:38.7]} 6... Nge7 {[%clk 0:02:57.3]}
7. d3 {[%clk 0:02:38.3]} 7... O-O {[%clk 0:02:56.7]} 8. Qe1 {[%clk 0:02:34.8]}
8... d5 {[%clk 0:02:53.7]} 9. Bb3 {[%clk 0:02:34.8]} 9... Nd4 {[%clk 0:02:43.1]}
10. Nxd4 {[%clk 0:02:33.7]} 10... cxd4 {[%clk 0:02:35.3]} 11. Ne2 {[%clk
0:02:34.2]} 11... dxe4 {[%clk 0:02:35.4]} 12. dxe4 {[%clk 0:02:35.1]} 12... Nc6
{[%clk 0:02:34.7]} 13. Ng3 {[%clk 0:02:32.3]} 13... Qb6 {[%clk 0:02:21.9]} 14.
Kh1 {[%clk 0:02:20.4]} 14... a5 {[%clk 0:02:06.6]} 15. f5 {[%clk 0:01:52.7]}
15... a4 {[%clk 0:01:59.5]} 16. Bc4 {[%clk 0:01:45.8]} 16... Na5 {[%clk
0:01:56.6]} 17. Bd3 {[%clk 0:01:35.4]} 17... exf5 {[%clk 0:01:36.6]} 18. exf5
{[%clk 0:01:36.3]} 18... Bd7 {[%clk 0:01:31.2]} 19. Qe4 {[%clk 0:01:24.1]} 19...
Bc6 {[%clk 0:01:12.4]} 20. Qh4 {[%clk 0:01:17.8]} 20... Bf6 {[%clk 0:01:03.1]}
21. Qh3 {[%clk 0:01:14.4]} 21... Bd7 {[%clk 0:00:42.3]} 22. Bh6 {[%clk
0:00:58.2]} 22... Rfe8 {[%clk 0:00:37.6]} 23. Ne4 {[%clk 0:00:50.1]} 23... Bh8
{[%clk 0:00:29.5]} 24. Qg3 {[%clk 0:00:30.5]} 24... Be5 {[%clk 0:00:20.5]} 25.
Qg4 {[%clk 0:00:24.7]} 25... Kh8 {[%clk 0:00:18.3]} 26. Ng5 {[%clk 0:00:18.1]}
26... Bg7 {[%clk 0:00:10.7]} 27. Nxf7+ {[%clk 0:00:16.2]} 27... Kg8 {[%clk
0:00:09.8]} 28. Bxg7 {[%clk 0:00:15.5]} 28... Kxg7 {[%clk 0:00:09]} 29. Qh4
{[%clk 0:00:11.9]} 29... Bxf5 {[%clk 0:00:07.8]} 30. Bxf5 {[%clk 0:00:11.2]}
30... gxf5 {[%clk 0:00:08.7]} 31. Ng5 {[%clk 0:00:10.4]} 31... Qh6 {[%clk
0:00:07.6]} 32. Qxh6+ {[%clk 0:00:08]} 32... Kxh6 {[%clk 0:00:08.5]} 33. Rxf5
{[%clk 0:00:08.2]} 33... Kg6 {[%clk 0:00:08.5]} 34. Raf1 {[%clk 0:00:08.2]}
34... Rac8 {[%clk 0:00:07.4]} 35. h4 {[%clk 0:00:05.8]} 35... Nc4 {[%clk
0:00:07]} 36. Rf6+ {[%clk 0:00:05.3]} 36... Kg7 {[%clk 0:00:06.3]} 37. Ne6+
{[%clk 0:00:04.9]} 37... Kg8 {[%clk 0:00:06.5]} 38. Nxd4 {[%clk 0:00:05.4]}
38... Ne3 {[%clk 0:00:06.5]} 39. Re1 {[%clk 0:00:04.7]} 39... Nd5 {[%clk
0:00:05.5]} 40. Rxe8+ {[%clk 0:00:05.6]} 40... Rxe8 {[%clk 0:00:05.9]} 41. Rd6
{[%clk 0:00:06.2]} 41... Ne3 {[%clk 0:00:06.7]} 42. Kh2 {[%clk 0:00:06]} 42...
Ng4+ {[%clk 0:00:07.5]} 43. Kg3 {[%clk 0:00:05.9]} 43... Nf2 {[%clk 0:00:08.4]}
44. Rd7 {[%clk 0:00:05.9]} 44... Ne4+ {[%clk 0:00:09.3]} 45. Kh2 {[%clk
0:00:04.7]} 45... Nf6 {[%clk 0:00:09.9]} 46. Rxb7 {[%clk 0:00:04.8]} 46... Re2
{[%clk 0:00:09.4]} 47. Nf5 {[%clk 0:00:05.2]} 47... Ng4+ {[%clk 0:00:08.9]} 48.
Kg3 {[%clk 0:00:05.1]} 48... Ne3 {[%clk 0:00:09.2]} 49. Nxe3 {[%clk 0:00:05.1]}
49... Rxe3+ {[%clk 0:00:10.1]} 50. Kf2 {[%clk 0:00:06]} 50... Re4 {[%clk
0:00:10.3]} 51. Rb8+ {[%clk 0:00:06.9]} 51... Kg7 {[%clk 0:00:10]} 52. Ra8
{[%clk 0:00:07.7]} 52... Kf6 {[%clk 0:00:10.4]} 53. c3 {[%clk 0:00:08.6]} 53...
Kg6 {[%clk 0:00:10.7]} 54. Kf3 {[%clk 0:00:09.5]} 54... Re5 {[%clk 0:00:10.2]}
55. Ra6+ {[%clk 0:00:09.9]} 55... Kh5 {[%clk 0:00:09.5]} 56. Rxa4 {[%clk
0:00:10.8]} 56... Rb5 {[%clk 0:00:09.4]} 57. Rf4 {[%clk 0:00:11.7]} 57... Rxb2
{[%clk 0:00:08.6]} 58. g4+ {[%clk 0:00:12.6]} 58... Kg6 {[%clk 0:00:08.2]} 59.
Rf7 {[%clk 0:00:13.5]} 59... Kxf7 {[%clk 0:00:07.8]} 60. h5 {[%clk 0:00:13.8]}
60... Kg7 {[%clk 0:00:08.1]} 61. g5 {[%clk 0:00:14.1]} 61... Rxa2 {[%clk
0:00:08.6]} 62. Kg4 {[%clk 0:00:15]} 62... Ra3 {[%clk 0:00:08.7]} 63. h6+ {[%clk
0:00:14.9]} 63... Kg6 {[%clk 0:00:07.9]} 64. c4 {[%clk 0:00:15.5]} 64... Rc3
{[%clk 0:00:08.2]} 65. c5 {[%clk 0:00:15.1]} 65... Rc4+ {[%clk 0:00:08.7]} 66.
Kf3 {[%clk 0:00:15]} 66... Kxg5 {[%clk 0:00:08.9]} 67. Kg3 {[%clk 0:00:15.9]}
67... Rxc5 {[%clk 0:00:09.3]} 68. Kh3 {[%clk 0:00:16.8]} 68... Rc4 {[%clk
0:00:09.2]} 69. Kh2 {[%clk 0:00:17.7]} 69... Kxh6 {[%clk 0:00:09.5]} 70. Kh3
{[%clk 0:00:18.6]} 70... Kg5 {[%clk 0:00:10.2]} 71. Kg3 {[%clk 0:00:19]} 71...
Rc3+ {[%clk 0:00:10.7]} 72. Kf2 {[%clk 0:00:19]} 72... Kf4 {[%clk 0:00:11.6]}
73. Ke2 {[%clk 0:00:19]} 73... Re3+ {[%clk 0:00:11.8]} 74. Kd2 {[%clk
0:00:19.1]} 74... h5 {[%clk 0:00:12.7]} 75. Kd1 {[%clk 0:00:19.2]} 75... h4
{[%clk 0:00:13.6]} 76. Kd2 {[%clk 0:00:20.1]} 76... h3 {[%clk 0:00:14.5]} 77.
Kd1 {[%clk 0:00:20.5]} 77... h2 {[%clk 0:00:15.4]} 78. Kd2 {[%clk 0:00:21.4]}
78... h1=Q {[%clk 0:00:15.2]} 79. Kc2 {[%clk 0:00:21.7]} 79... Qg2+ {[%clk
0:00:15.5]} 80. Kd1 {[%clk 0:00:21.3]} 80... Rf3 {[%clk 0:00:15.6]} 81. Ke1
{[%clk 0:00:21]} 81... Rf1# {[%clk 0:00:16.5]} 0-1